bitfinex-derivatives/quotes_ETHF0:USTF0_20250621
["timestamp","ask_amount","ask_price","bid_price","bid_amount"]
[1750529014853,0.06847599,2403.7,2403.2,3.2078]
[1750529015054,0.83197,2403.5,2403.3,7.65802]
[1750529015255,0.83197,2403.5,2403.3,6.826]
[1750529015557,0.83203,2403.3,2403.2,3.2078]
[1750529015862,1.4044,2403.5,2403.4,0.83199]
[1750529016051,1.4044,2403.5,2403.3,0.83201]
[1750529016052,2.23636,2403.5,2403.3,0.83201]
[1750529016241,2.23636,2403.5,2403.2,10.0338]
[1750529016444,3.27627599,2403.7,2403.2,10.0338]
[1750529016445,4.10817599,2403.7,2403.2,10.0338]
[1750529016755,0.83192,2403.6,2403.4,0.83196]
[1750529017454,4.10816599,2403.7,2403.2,12.11394]
[1750529017754,0.83192,2403.6,2403.5,0.83195]
[1750529018157,0.06847599,2403.7,2403.6,0.83192]
[1750529018456,0.83192,2403.6,2403.5,4.03974]
[1750529018751,0.83192,2403.6,2403.5,3.2078]
[1750529018971,0.90038599,2403.7,2403.5,4.03976]
[1750529019147,0.90038599,2403.7,2403.6,0.83192]
[1750529019453,0.83192,2403.6,2403.5,4.03974]
[1750529019856,0.83192,2403.6,2403.5,3.2078]
[1750529021347,0.83192,2403.6,2403.5,4.03976]
[1750529021948,0.83192,2403.6,2403.5,3.2078]
[1750529022351,0.83206,2403.3,2403.2,3.2078]
[1750529023248,2.87927,2403.5,2403.3,0.83203]
[1750529023453,0.83201,2403.4,2403.2,4.03984]
[1750529023652,2.87928,2403.5,2403.3,0.83203]
[1750529024057,0.83199,2403.4,2403.3,0.83203]
[1750529024356,0.83203,2403.3,2403.2,3.2078]
[1750529024555,1.3878,2403.3,2403.2,10.86386]
[1750529025261,2.21983,2403.3,2403.2,10.86386]
[1750529025957,1.3878,2403.3,2403.2,10.86386]
[1750529026257,0.6631,2403.5,2403.4,0.83199]
[1750529027151,0.06847599,2403.7,2403.5,0.83196]
[1750529027856,0.83192,2403.6,2403.5,0.83196]
[1750529028164,2.29538599,2403.7,2403.5,0.83196]
[1750529028456,0.83192,2403.6,2403.5,0.83196]
[1750529028659,0.83192,2403.6,2403.4,0.83197]
[1750529029657,2.29538599,2403.7,2403.6,0.83192]
[1750529030063,0.83192,2403.6,2403.5,0.83194]
[1750529030762,2.22692,2403.7,2403.6,0.83192]
[1750529031376,1.395,2403.7,2403.6,0.83192]
[1750529032759,1.53857,2403.8,2403.7,0.83189]
[1750529033065,1.53857,2403.8,2403.5,4.03974]
[1750529033066,0.83192,2403.6,2403.5,4.03974]
[1750529033366,0.7067,2403.8,2403.5,10.0478]
[1750529033560,2.83657,2403.8,2403.6,0.8319]
[1750529033864,2.83657,2403.8,2403.7,0.83189]
[1750529033865,2.0047,2403.8,2403.7,0.83189]
[1750529034258,0.7067,2403.8,2403.7,0.83189]
[1750529034476,0.6948,2403.9,2403.8,0.83186]
[1750529034962,2.81213,2404.2,2404.0,0.83176]
[1750529035163,0.83176,2404.1,2404.0,0.83179]
[1750529035358,1.9804,2404.2,2404.1,0.83175]
[1750529035758,0.6824,2404.2,2404.1,0.83175]
[1750529035961,0.6479,2404.3,2404.2,0.83172]
[1750529036166,1.298,2404.5,2404.4,0.83165]
[1750529036968,1.298,2404.5,2404.1,5.28716]
[1750529036969,0.6824,2404.6,2404.5,0.83161]
[1750529037467,2.114,2404.6,2404.5,0.83161]
[1750529039269,2.94558,2404.6,2404.4,4.03943]
[1750529039572,0.83166,2404.4,2404.2,7.6707]
[1750529039765,1.3392,2404.3,2404.2,7.6707]
[1750529040864,1.3392,2404.3,2404.1,0.83173]
[1750529041070,1.3392,2404.3,2403.9,2.48650995]
[1750529041071,0.83179,2404.0,2403.9,2.48650995]
[1750529041265,0.83179,2404.0,2403.8,3.31833995]
[1750529041467,2.0157,2403.9,2403.8,0.83183]
[1750529041766,2.07972,2403.8,2403.2,2.48650995]
[1750529042068,0.83213,2403.0,2402.9,3.2078]
[1750529042268,0.83222,2402.8,2402.6,5.69430995]
[1750529042469,1.9606,2402.9,2402.6,3.2078]
[1750529042657,0.8322,2402.8,2402.6,4.04007]
[1750529042858,2.13924,2402.7,2402.3,2.48650995]
[1750529043067,0.83227,2402.6,2402.3,2.48650995]
[1750529043362,1.307,2402.5,2402.2,12.53330995]
[1750529043561,1.307,2402.5,2402.3,0.83235]
[1750529043778,1.307,2402.5,2402.4,0.83234]
[1750529044161,1.307,2402.5,2402.2,10.0468]
[1750529044470,1.307,2402.5,2402.3,0.83237]
[1750529044863,1.307,2402.5,2402.4,0.83234]
[1750529045066,1.307,2402.5,2402.2,10.8792]
[1750529045263,0.83235,2402.4,2402.2,10.0468]
[1750529045462,0.83237,2402.3,2402.2,10.0468]
[1750529046070,0.83234,2402.4,2402.2,10.0468]
[1750529046370,2.13931,2402.5,2402.2,10.87919]
[1750529046564,1.307,2402.5,2402.2,10.0468]
[1750529046771,0.83237,2402.3,2402.2,3.2078]
[1750529046972,1.307,2402.5,2402.2,3.2078]
[1750529046973,0.83236,2402.4,2402.2,3.2078]
[1750529047270,2.25408,2402.3,2402.0,0.83246]
[1750529047668,1.4217,2402.3,2402.1,0.83244]
[1750529048062,10.0478,2402.7,2401.9,10.0478]
[1750529048063,3.2078,2402.7,2401.9,10.0478]
[1750529048265,0.83228,2402.6,2402.3,0.83235]
[1750529048474,2.18648,2402.6,2402.3,0.83235]
[1750529049368,2.18648,2402.6,2402.4,0.83231]
[1750529049369,1.3542,2402.6,2402.4,0.83231]
[1750529049569,1.3542,2402.6,2402.3,4.04015]
[1750529049570,2.18649,2402.6,2402.3,4.04015]
[1750529049770,1.3542,2402.6,2402.3,4.04015]
[1750529049977,2.18649,2402.6,2402.3,4.04015]
[1750529050470,2.18649,2402.6,2402.4,0.83234]
[1750529050870,0.83236,2402.4,2402.2,0.8324]
[1750529051068,1.3542,2402.3,2402.2,0.8324]
[1750529052073,0.83228,2402.6,2402.4,0.83232]
[1750529052572,8.2284,2402.8,2402.1,6.841]
[1750529052774,8.2284,2402.8,2402.4,0.83232]
[1750529052775,2.21967,2402.6,2402.4,0.83232]
[1750529052976,2.21967,2402.6,2402.3,3.2078]
[1750529052977,1.3874,2402.6,2402.5,0.83231]
[1750529053195,0.83222,2402.8,2402.6,0.83227]
[1750529053370,0.6536,2402.9,2402.8,0.8322]
[1750529053669,0.6536,2402.9,2402.7,4.04002]
[1750529053867,2.87319,2402.9,2402.7,4.04002]
[1750529054168,0.8322,2402.8,2402.7,3.2078]
[1750529054366,0.83225,2402.7,2402.5,7.67428]
[1750529054969,0.8323,2402.5,2402.4,4.04013]
[1750529055175,0.83229,2402.6,2402.4,0.83233]
[1750529055373,0.83226,2402.7,2402.5,0.8323]
[1750529055572,2.16205,2402.7,2402.5,0.83228]
[1750529055978,1.3298,2402.7,2402.6,0.83227]
[1750529056294,0.83222,2402.8,2402.4,3.2078]
[1750529056464,0.83222,2402.8,2402.6,0.83225]
[1750529056973,16.22112,2403.1,2402.6,0.83225]
[1750529057677,16.22112,2403.1,2402.7,0.83224]
[1750529058775,0.8322,2402.8,2402.6,0.83225]
[1750529059408,0.8322,2402.8,2402.5,1.3048]
[1750529059977,0.8322,2402.8,2402.6,0.83224]
[1750529060190,0.8322,2402.8,2402.5,1.3048]
[1750529060375,0.8322,2402.8,2402.6,0.83227]
[1750529060774,0.8322,2402.8,2402.7,0.83224]
[1750529061186,0.8322,2402.8,2402.6,0.83225]
[1750529061873,0.76097599,2403.1,2402.8,0.83218]
[1750529062073,0.83216,2403.0,2402.8,0.83218]
[1750529062282,0.83214,2403.0,2402.8,0.83218]
[1750529062496,0.83217,2402.9,2402.8,0.83218]
[1750529062675,0.83216,2403.0,2402.8,0.83218]
[1750529062875,0.6925,2403.1,2402.8,0.83218]
[1750529063077,0.83213,2403.0,2402.8,0.83218]
[1750529063375,0.83213,2403.0,2402.9,0.83217]
[1750529063577,0.83217,2402.9,2402.8,0.83218]
[1750529064191,0.83217,2402.9,2402.7,4.04001]
[1750529064481,0.83217,2402.9,2402.8,0.8322]
[1750529064688,0.83215,2403.0,2402.8,1.485]
[1750529064987,0.83215,2403.0,2402.8,3.5309]
[1750529065183,0.83216,2403.0,2402.8,3.5309]
[1750529065590,0.83217,2402.9,2402.8,3.5309]
[1750529065784,0.83217,2402.9,2402.8,2.2005]
[1750529067282,0.666,2403.4,2402.9,2.08042]
[1750529067487,3.2078,2403.6,2403.1,3.2078]
[1750529067792,5.2518,2403.6,2403.3,0.83201]
[1750529067994,1.49973,2403.6,2403.5,0.83196]
[1750529068191,0.83193,2403.6,2403.4,4.03977]
[1750529068491,0.83191,2403.7,2403.4,3.2078]
[1750529068703,0.83191,2403.7,2403.5,0.83195]
[1750529068890,0.83193,2403.6,2403.4,4.03977]
[1750529069590,0.6678,2403.9,2403.5,0.83196]
[1750529069791,0.83192,2403.7,2403.5,0.83196]
[1750529070695,1.2984,2403.8,2403.4,3.2078]
[1750529070696,2.13027,2403.8,2403.4,3.2078]
[1750529070896,2.13027,2403.8,2403.6,0.83189]
[1750529071789,0.83189,2403.7,2403.6,0.83189]
[1750529072279,2.13028,2403.8,2403.6,0.83189]
[1750529072593,1.2984,2403.8,2403.4,3.9238]
[1750529072892,1.2984,2403.8,2403.4,0.716]
[1750529072893,0.83196,2403.5,2403.4,0.716]
[1750529073394,0.83195,2403.6,2403.4,1.54799]
[1750529073591,0.8319,2403.7,2403.5,0.83194]
[1750529073992,2.13028,2403.8,2403.6,0.83192]
[1750529074395,0.83189,2403.7,2403.6,0.83192]
[1750529074695,0.83186,2403.8,2403.7,0.83187]
[1750529075094,0.83181,2404.0,2403.5,3.50488]
[1750529075298,0.83181,2404.0,2403.8,0.83183]
[1750529075502,0.83181,2404.0,2403.7,10.0338]
[1750529075891,0.83181,2404.0,2403.9,0.83182]
[1750529076192,0.83182,2403.9,2403.8,0.83184]
[1750529076392,0.83181,2404.0,2403.8,0.83184]
[1750529076595,2.0784,2404.2,2403.7,10.0338]
[1750529076790,0.83181,2404.0,2403.7,10.0338]
[1750529077298,0.83181,2404.0,2403.9,0.83182]
[1750529078799,0.83177,2404.1,2403.9,0.83182]
[1750529079100,0.83179,2404.0,2403.9,0.83182]
[1750529079600,2.91014,2404.2,2404.0,0.83176]
[1750529079994,0.83175,2404.1,2404.0,0.83176]
[1750529080196,0.8318,2404.0,2403.8,0.6576]
[1750529080497,0.83177,2404.1,2403.9,0.8318]
[1750529081113,0.83179,2404.0,2403.8,1.48943]
[1750529081797,0.83179,2404.0,2403.9,0.83182]
[1750529082990,0.83179,2404.0,2403.8,8.31443]
[1750529083507,0.83179,2404.0,2403.9,0.83182]
[1750529083909,0.83182,2403.9,2403.8,8.31443]
[1750529084105,0.83181,2404.0,2403.8,8.31443]
[1750529084407,0.83182,2403.9,2403.8,8.31443]
[1750529084605,0.83191,2403.7,2403.6,6.825]
[1750529084904,0.06847599,2403.8,2403.6,0.83192]
[1750529085096,0.83189,2403.7,2403.6,0.83192]
[1750529085901,0.90035599,2403.8,2403.6,0.83192]
[1750529086102,0.90035599,2403.8,2403.7,0.83189]
[1750529086300,0.90035599,2403.8,2403.6,0.8319]
[1750529086602,0.06847599,2403.8,2403.7,0.83189]
[1750529087301,0.06847599,2403.8,2403.7,4.03969]
[1750529093001,0.06847599,2403.8,2403.7,10.82069]
[1750529093316,0.06847599,2403.8,2403.7,7.61289]
[1750529095903,0.90032599,2403.8,2403.7,7.61289]
[1750529096300,0.06847599,2403.8,2403.7,7.61289]
[1750529097006,0.90032599,2403.8,2403.7,7.61289]
[1750529097607,0.06847599,2403.8,2403.7,7.61289]
[1750529097803,0.06847599,2403.8,2403.7,0.83189]
[1750529098510,0.90033599,2403.8,2403.7,0.83189]
[1750529100004,0.06847599,2403.8,2403.7,0.83189]
[1750529101214,0.90032599,2403.8,2403.7,0.83189]
[1750529101408,0.06847599,2403.8,2403.7,0.83189]
[1750529102514,0.83192,2403.6,2403.5,3.2078]
[1750529102816,2.84231,2403.7,2403.6,0.83192]
[1750529103115,2.84231,2403.7,2403.5,4.03974]
[1750529103116,0.83192,2403.6,2403.5,4.03974]
[1750529103918,0.83192,2403.6,2403.5,3.2078]
[1750529104421,2.84232,2403.7,2403.5,4.03976]
[1750529105009,0.83192,2403.6,2403.5,4.03976]
[1750529105219,0.6522,2403.7,2403.6,0.83192]
[1750529105514,1.48409,2403.7,2403.6,0.83192]
[1750529106416,1.48409,2403.7,2403.5,4.03973]
[1750529106618,0.83192,2403.6,2403.5,3.2078]
[1750529106817,2.23892,2403.6,2403.5,3.2078]
[1750529111220,5.90572539,2403.8,2403.5,3.2078]
[1750529111221,0.06847599,2403.8,2403.6,2.07982]
[1750529111520,50.02467,2405.0,2403.6,2.07982]
[1750529111521,0.8315,2404.9,2403.7,7.45579749]
[1750529111722,0.83152,2404.8,2404.6,0.83158]
[1750529111925,2.24702,2404.8,2404.5,3.2078]
[1750529112224,3.2078,2405.3,2404.6,2.6294494]
[1750529112438,0.83143,2405.1,2404.9,3.2078]
[1750529112721,3.4608394,2405.2,2404.9,4.72817]
[1750529112916,3.2078,2405.3,2404.9,3.8967]
[1750529113121,0.83125,2405.6,2405.3,0.83133]
[1750529113315,4.6973494,2405.8,2405.3,0.83132]
[1750529113614,0.83125,2405.6,2405.3,0.83132]
[1750529114118,3.4606694,2405.7,2405.3,0.83132]
[1750529114318,1.4117,2405.6,2405.5,0.83127]
[1750529114507,2.0679,2405.8,2405.6,0.83123]
[1750529114906,2.0679,2405.8,2405.7,0.8312]
[1750529115110,2.0679,2405.8,2405.6,0.83121]
[1750529115318,2.89907,2405.8,2405.5,4.03904]
[1750529115521,2.0679,2405.8,2405.6,0.83123]
[1750529116618,2.89906,2405.8,2405.5,4.03905]
[1750529117120,2.0679,2405.8,2405.6,0.83123]
[1750529117423,2.0679,2405.8,2405.5,3.2078]
[1750529117424,2.89907,2405.8,2405.5,4.03905]
[1750529117616,2.0679,2405.8,2405.6,0.83123]
[1750529118225,2.89906,2405.8,2405.5,3.2078]
[1750529118424,0.8312,2405.7,2405.5,3.2078]
[1750529118623,2.2428,2405.7,2405.5,3.2078]
[1750529119225,1.4116,2405.7,2405.4,0.83129]
[1750529119426,2.24281,2405.7,2405.4,0.83129]
[1750529119925,1.4116,2405.7,2405.3,2.16401]
[1750529120227,0.83123,2405.6,2405.4,0.8313]
[1750529120423,0.83123,2405.6,2405.3,2.16401]
[1750529120820,3.2078,2405.6,2405.2,9.9858]
[1750529121025,1.4116,2405.5,2405.2,4.03917]
[1750529121327,2.24288,2405.5,2405.2,4.03917]
[1750529121528,0.83128,2405.5,2405.2,4.03917]
[1750529121728,0.83131,2405.4,2405.2,4.03917]
[1750529121927,0.83134,2405.3,2405.2,3.2078]
[1750529122524,0.83132,2405.4,2405.2,3.2078]
[1750529122830,3.2078,2405.7,2405.2,3.2078]
[1750529123018,0.83129,2405.5,2405.3,0.83133]
[1750529123224,2.14974,2405.6,2405.4,0.83129]
[1750529123536,0.72467599,2405.8,2405.3,0.83131]
[1750529123537,0.83127,2405.5,2405.3,0.83131]
[1750529123730,0.83127,2405.5,2405.3,2.12511]
[1750529124029,0.72467599,2405.8,2405.3,2.12511]
[1750529124030,0.83125,2405.6,2405.4,0.83129]
[1750529124531,0.83127,2405.5,2405.3,2.12511]
[1750529124725,0.83126,2405.6,2405.4,0.8313]
[1750529125223,0.83127,2405.5,2405.3,2.12511]
[1750529126028,0.83127,2405.5,2405.3,2.12514]
[1750529126029,0.83128,2405.5,2405.3,2.12514]
[1750529126730,0.8313,2405.4,2405.3,1.2938]
[1750529127131,0.8313,2405.4,2405.2,4.03916]
[1750529127326,0.8313,2405.4,2405.2,3.2078]
[1750529127731,0.83129,2405.5,2405.3,0.83134]
[1750529127931,3.2078,2405.7,2405.3,0.83134]
[1750529128134,0.83128,2405.5,2405.3,0.83131]
[1750529128931,0.83128,2405.5,2405.2,0.83134]
[1750529129126,0.83131,2405.4,2405.2,0.83134]
[1750529130124,0.83131,2405.4,2405.1,3.2078]
[1750529130125,0.83129,2405.5,2405.3,0.83134]
[1750529130319,0.8313,2405.4,2405.3,0.83134]
[1750529130537,0.8313,2405.4,2405.2,0.83135]
[1750529130830,0.83137,2405.2,2405.1,5.40769]
[1750529131035,0.83136,2405.3,2405.2,0.83137]
[1750529131734,3.864,2405.8,2405.4,0.83128]
[1750529132232,0.83125,2405.6,2405.4,4.03908]
[1750529132728,0.83127,2405.5,2405.4,3.2078]
[1750529132929,0.83127,2405.5,2405.4,4.0391]
[1750529133632,0.83126,2405.6,2405.4,0.8313]
[1750529134935,0.83127,2405.5,2405.4,0.8313]
[1750529135136,2.0189,2405.8,2405.4,0.83128]
[1750529135528,0.83125,2405.6,2405.4,0.83128]
[1750529135723,0.83127,2405.5,2405.4,0.83128]
[1750529136630,0.83125,2405.6,2405.4,0.83128]
[1750529136830,0.83127,2405.5,2405.4,0.83128]
[1750529137031,0.83127,2405.5,2405.4,0.8313]
[1750529137233,0.83127,2405.5,2405.3,0.83131]
[1750529137632,0.83134,2405.3,2405.2,4.10763599]
[1750529138030,0.83134,2405.3,2405.2,0.06847599]
[1750529138232,5.41284,2405.3,2405.2,0.06847599]
[1750529138435,6.08934,2405.3,2405.2,0.06847599]
[1750529138729,0.83154,2404.7,2404.6,3.2078]
[1750529138923,2.6256522,2405.4,2404.4,0.83163]
[1750529138924,2.0783,2405.4,2404.5,2.6256522]
[1750529139132,3.3068522,2405.3,2404.8,0.8315]
[1750529139328,0.83144,2405.1,2404.8,0.8315]
[1750529139528,0.83144,2405.1,2404.9,0.83147]
[1750529139829,0.83144,2405.1,2404.8,0.83148]
[1750529140229,0.83144,2405.1,2404.9,0.83147]
[1750529140430,1.3737,2405.2,2404.6,0.83155]
[1750529140735,0.8315,2404.9,2404.6,0.83155]
[1750529140935,0.83151,2404.8,2404.6,0.83155]
[1750529141138,0.83149,2404.9,2404.6,0.83155]
[1750529141330,2.92546,2405.0,2404.7,0.83154]
[1750529141530,2.92546,2405.0,2404.7,0.83152]
[1750529141930,0.83148,2404.9,2404.7,0.83152]
[1750529142342,2.92546,2405.0,2404.7,0.83152]
[1750529142535,0.6812,2405.3,2404.9,2.6256522]
[1750529142738,0.7084,2405.5,2405.3,0.83133]
[1750529143042,1.53968,2405.5,2405.3,0.83133]
[1750529143352,0.8313,2405.4,2405.2,0.83135]
[1750529143540,2.89579,2405.5,2405.3,0.83134]
[1750529143842,2.89579,2405.5,2405.1,3.2078]
[1750529143843,2.89579,2405.5,2405.2,0.83135]
[1750529144138,2.0645,2405.5,2405.3,0.83133]
[1750529144331,2.89577,2405.5,2405.2,0.83135]
[1750529144626,0.8313,2405.4,2405.2,0.83135]
[1750529144831,2.89579,2405.5,2405.3,0.83133]
[1750529145243,2.89579,2405.5,2405.2,0.83135]
[1750529145537,2.89579,2405.5,2405.3,0.83131]
[1750529147442,2.89579,2405.5,2405.4,0.8313]
[1750529148038,0.6611,2405.6,2405.5,0.83127]
[1750529149141,1.49233,2405.6,2405.5,0.83127]
[1750529149348,1.49233,2405.6,2405.4,4.03908]
[1750529149555,1.49233,2405.6,2405.5,0.83127]
[1750529150543,0.6611,2405.6,2405.4,3.2078]
[1750529150746,0.83127,2405.5,2405.3,0.83132]
[1750529150947,0.89974599,2405.5,2405.4,0.8313]
[1750529151144,0.06847599,2405.5,2405.4,0.8313]
[1750529152949,0.89974599,2405.5,2405.4,0.8313]
[1750529153151,2.26184599,2405.5,2405.4,0.8313]
[1750529153646,1.43057599,2405.5,2405.4,0.8313]
[1750529154350,1.43057599,2405.5,2405.3,0.83131]
[1750529154754,2.26184599,2405.5,2405.3,0.83131]
[1750529155148,1.43057599,2405.5,2405.4,0.8313]
[1750529155344,2.26184599,2405.5,2405.4,0.8313]
[1750529155852,0.89974599,2405.5,2405.4,0.8313]
[1750529156351,0.06847599,2405.5,2405.4,0.8313]
[1750529156744,0.89974599,2405.5,2405.4,0.8313]
[1750529156939,0.06847599,2405.5,2405.1,11.3924]
[1750529157144,0.06847599,2405.5,2405.4,0.8313]
[1750529157550,0.89974599,2405.5,2405.4,0.8313]
[1750529157751,0.06847599,2405.5,2405.4,0.8313]
[1750529158053,1.49236,2405.6,2405.4,0.8313]
[1750529158757,1.49236,2405.6,2405.5,0.83127]
[1750529158952,1.2927,2405.8,2405.6,0.83123]
[1750529159147,1.48316,2405.9,2405.4,7.9116522]
[1750529159341,0.652,2405.9,2405.8,0.83116]
[1750529159547,1.48314,2405.9,2405.7,0.83117]
[1750529159743,1.48314,2405.9,2405.8,0.83116]
[1750529159948,0.83108,2406.1,2405.9,0.83112]
[1750529160152,27.0465,2406.2,2405.9,0.83112]
[1750529160450,27.0465,2406.2,2405.9,0.8311]
[1750529160451,0.83107,2406.1,2405.9,0.8311]
[1750529160657,0.83107,2406.1,2405.7,3.2078]
[1750529160955,27.0455,2406.2,2405.9,0.83112]
[1750529160956,0.83109,2406.0,2405.9,0.83112]
[1750529161160,0.83108,2406.1,2405.9,0.83112]
[1750529161551,0.83108,2406.1,2406.0,0.83109]
[1750529161753,0.83108,2406.1,2405.9,0.8311]
[1750529162254,0.83108,2406.1,2406.0,0.83109]
[1750529162460,1.3085,2406.2,2405.7,9.2167322]
[1750529162650,0.83104,2406.2,2406.0,0.83108]
[1750529163559,30.3583,2406.4,2406.0,0.83108]
[1750529163560,3.9164,2406.4,2406.3,0.83099]
[1750529163857,0.7086,2406.4,2406.3,0.83099]
[1750529164257,3.2078,2406.7,2406.1,7.8668522]
[1750529164449,3.2078,2406.7,2406.6,0.83089]
[1750529164650,0.83081,2406.9,2406.6,0.83089]
[1750529164857,2.6869,2407.1,2406.7,2.6256522]
[1750529165066,1.3646,2407.1,2406.9,3.2078]
[1750529165264,0.6959,2407.1,2406.9,3.2078]
[1750529165456,0.6959,2407.1,2407.0,0.83075]
[1750529165652,2.82162,2407.4,2407.2,0.83067]
[1750529165859,3.2078,2407.6,2407.2,6.766]
[1750529166163,0.83061,2407.4,2407.3,0.703]
[1750529166360,3.9479522,2407.5,2407.1,6.765]
[1750529166553,1.3223,2407.5,2407.2,0.83067]
[1750529166755,0.83061,2407.4,2407.1,7.59569]
[1750529166953,0.83061,2407.4,2407.1,6.765]
[1750529167261,1.51693,2407.4,2407.1,7.59571]
[1750529167462,1.51693,2407.4,2406.5,3.32113309]
[1750529167463,0.83075,2407.0,2406.5,3.32113309]
[1750529167662,2.6256522,2407.1,2406.6,9.9728]
[1750529167859,0.83079,2406.9,2406.7,0.83085]
[1750529168054,0.645,2407.2,2406.6,11.3513]
[1750529168260,0.83077,2407.0,2406.7,0.83083]
[1750529168463,0.83073,2407.1,2406.8,0.83081]
[1750529168962,0.83073,2407.1,2406.9,0.83078]
[1750529169181,2.0232,2407.2,2406.9,3.2078]
[1750529169468,0.83066,2407.3,2407.1,0.83071]
[1750529169761,0.6863,2407.4,2407.0,6.764]
[1750529169972,0.6863,2407.4,2407.3,0.83065]
[1750529170263,3.2078,2407.8,2407.4,0.83059]
[1750529170456,3.2078,2407.8,2407.2,3.2078]
[1750529170457,0.83056,2407.6,2407.3,0.83064]
[1750529170864,5.37559,2407.8,2407.2,3.2078]
[1750529171176,5.37559,2407.8,2407.6,0.83052]
[1750529171359,5.37559,2407.8,2407.5,0.83056]
[1750529171560,4.5451,2407.8,2407.6,0.83054]
[1750529171872,4.5451,2407.8,2407.3,1.3281]
[1750529172068,2.16778,2407.8,2407.6,0.83052]
[1750529172567,2.1678,2407.8,2407.6,0.83054]
[1750529173166,2.1678,2407.8,2407.5,4.03835]
[1750529173363,0.83051,2407.7,2407.5,4.03835]
[1750529173563,2.16779,2407.8,2407.6,0.83054]
[1750529173763,0.83052,2407.7,2407.5,3.8926]
[1750529173957,1.3373,2407.8,2407.5,3.8926]
[1750529174264,0.83045,2407.9,2407.5,3.8926]
[1750529174462,0.83045,2407.9,2407.6,0.83054]
[1750529174770,3.9101,2408.2,2407.7,2.0589]
[1750529174972,3.2078,2407.8,2407.5,0.6848]
[1750529175165,3.2078,2408.1,2407.5,5.96898]
[1750529175479,4.03818,2408.1,2407.9,0.83042]
[1750529176465,3.2078,2408.1,2407.8,6.762]
[1750529176665,3.2078,2408.1,2407.6,0.83051]
[1750529176666,0.83047,2407.8,2407.6,0.83051]
[1750529176866,0.83049,2407.8,2407.5,3.8926]
[1750529177076,0.83046,2407.9,2407.7,0.83048]
[1750529177375,2.17156,2407.9,2407.7,0.83048]
[1750529177561,0.83047,2407.8,2407.7,0.83048]
[1750529177973,2.17155,2407.9,2407.7,0.83048]
[1750529178172,2.17155,2407.9,2407.8,0.83047]
[1750529178368,2.17155,2407.9,2407.7,0.83049]
[1750529179478,0.83051,2407.7,2407.6,0.83053]
[1750529179666,0.83049,2407.8,2407.7,0.83051]
[1750529180174,0.8305,2407.8,2407.6,0.83052]
[1750529180672,0.83051,2407.7,2407.6,0.83052]
[1750529181576,0.83053,2407.7,2407.5,10.6536]
[1750529181871,0.83053,2407.7,2407.6,0.83054]
[1750529182272,1.3411,2407.9,2407.6,0.83054]
[1750529182475,0.83053,2407.7,2407.5,8.27637]
[1750529182673,1.3411,2407.9,2407.5,7.4458]
[1750529182876,0.83052,2407.7,2407.5,1.51536]
[1750529183068,1.3411,2407.9,2407.5,1.51536]
[1750529183267,0.83054,2407.7,2407.5,1.51537]
[1750529183688,0.83054,2407.7,2407.6,0.83054]
[1750529184173,0.8305,2407.8,2407.6,0.83054]
[1750529184674,0.8305,2407.8,2407.6,0.83052]
[1750529184974,3.2078,2407.8,2407.5,1.51535]
[1750529185175,2.1097,2407.7,2407.6,0.83054]
[1750529185375,2.94021,2407.7,2407.6,0.83054]
[1750529185974,2.1097,2407.7,2407.6,0.83054]
[1750529186580,0.83046,2407.9,2407.7,0.83048]
[1750529187075,0.83044,2407.9,2407.8,0.83045]
[1750529187477,1.3478,2408.0,2407.7,0.83048]
[1750529187671,3.27627599,2408.1,2407.9,0.83044]
[1750529187982,4.10666599,2408.1,2407.9,0.83044]
[1750529188177,3.27627599,2408.1,2408.0,0.8304]
[1750529188481,4.10664599,2408.1,2407.9,0.83041]
[1750529188781,4.66497599,2408.1,2407.6,1.4017]
[1750529188969,0.83047,2407.8,2407.7,0.83048]
[1750529189170,0.83047,2407.8,2407.6,0.83052]
[1750529189479,0.83047,2407.8,2407.7,0.83051]
[1750529189780,0.83046,2407.9,2407.8,0.83047]
[1750529190275,0.83049,2407.8,2407.5,3.8926]
[1750529190579,0.83049,2407.8,2407.6,0.83052]
[1750529190780,0.83046,2407.9,2407.5,10.6466]
[1750529191081,0.83046,2407.9,2407.7,0.83048]
[1750529191372,4.66497599,2408.1,2407.5,10.6466]
[1750529191576,5.49536599,2408.1,2408.0,0.8304]
[1750529191974,4.66497599,2408.1,2408.0,0.8304]
[1750529192171,3.27627599,2408.1,2408.0,0.8304]
[1750529192570,4.10664599,2408.1,2408.0,0.8304]
[1750529193076,0.8304,2408.0,2407.9,0.83041]
[1750529193273,3.27627599,2408.1,2407.6,2.07636]
[1750529193480,3.27627599,2408.1,2407.6,3.46116]
[1750529193669,0.83044,2408.0,2407.9,0.83044]
[1750529194173,0.83046,2407.9,2407.6,6.754]
[1750529194375,1.48656,2407.9,2407.8,0.83047]
[1750529194682,0.83048,2407.8,2407.7,0.83051]
[1750529194883,0.83051,2407.7,2407.6,0.83052]
[1750529195180,2.0171,2407.8,2407.5,12.42813069]
[1750529195377,0.83052,2407.7,2407.6,0.83053]
[1750529195578,1.3526,2407.7,2407.3,3.29696069]
[1750529195779,1.3526,2407.7,2407.4,0.83061]
[1750529195780,0.83059,2407.5,2407.4,0.83061]
[1750529195975,0.83061,2407.4,2407.3,0.83063]
[1750529196174,0.8306,2407.5,2407.3,0.83063]
[1750529196377,0.8306,2407.5,2407.4,0.83061]
[1750529196581,0.83062,2407.4,2407.3,0.83064]
[1750529196782,0.8306,2407.5,2407.3,0.83064]
[1750529196982,0.83061,2407.4,2407.3,0.83064]